bitfinex/quotes_SOLUSD_20220216
["timestamp","ask_amount","ask_price","bid_price","bid_amount"]
[1644975837620,139.1537,103.15,103.03,144.03603748]
[1644975837918,61.06678774,103.14,103.03,152.73703748]
[1644975838417,49.1574,103.14,103.03,152.73703748]
[1644975838815,14.5501,103.12,103.03,167.28903748]
[1644975839015,49.1574,103.14,103.03,167.28903748]
[1644975839220,49.1574,103.14,103.04,13.98]
[1644975839418,49.1574,103.14,103.05,45.73192154]
[1644975839622,2.43983242,103.11,103.05,45.73192154]
[1644975839820,63.1374,103.14,103.05,45.73192154]
[1644975840317,14.5501,103.12,103.05,45.73192154]
[1644975840517,14.5501,103.12,103.05,142.73192154]
[1644975840927,49.1574,103.14,103.05,145.42175396]
[1644975841119,49.1574,103.14,103.05,150.83275396]
[1644975841520,49.1574,103.14,103.09,97.0]
[1644975841820,14.5458,103.16,103.1,34.57351864]
[1644975842019,14.5458,103.16,103.1,131.57351864]
[1644975842218,73.37390929,103.17,103.11,2.43983242]
[1644975842420,73.37390929,103.17,103.12,41.87891633]
[1644975842819,24.7509,103.18,103.12,41.87891633]
[1644975843227,24.7509,103.18,103.1,14.5421]
[1644975843427,24.7509,103.18,103.07,38.3675]
[1644975844325,39.2932,103.18,103.08,48.60421418]
[1644975844526,12.00152639,103.17,103.08,48.60421418]
[1644975844726,25.98152639,103.17,103.08,48.60421418]
[1644975845326,12.00152639,103.16,103.08,48.60421418]
[1644975845928,14.5485,103.15,103.08,48.60421418]
[1644975846325,14.5485,103.15,103.07,24.3875]
[1644975847127,14.5485,103.15,103.04,14.5493]
[1644975847429,14.5523,103.12,103.05,39.89807912]
[1644975847631,14.5523,103.12,103.05,42.33791154]
[1644975847828,14.5523,103.12,103.05,2.43983242]
[1644975848028,14.5523,103.12,103.03,97.0]
[1644975848428,14.5523,103.12,103.03,97.25]
[1644975848831,14.5523,103.12,103.04,43.73549274]
[1644975851229,37.3666,103.12,103.04,43.73549274]
[1644975852734,37.3666,103.12,103.02,23.7135]
[1644975852943,37.3666,103.12,103.02,23.9635]
[1644975853734,37.3666,103.12,103.03,42.08043637]
[1644975853956,37.3666,103.12,103.03,141.52026879]
[1644975854133,37.3666,103.12,103.03,141.77026879]
[1644975854334,37.3666,103.12,103.04,2.43983242]
[1644975854534,37.3666,103.12,103.05,38.84634912]
[1644975854737,37.3666,103.12,103.04,2.68983242]
[1644975854937,37.3666,103.12,103.02,23.7135]
[1644975855135,51.3466,103.12,103.02,23.7135]
[1644975855339,2.43983242,103.11,103.02,23.7135]
[1644975855634,14.5569,103.09,103.02,23.7135]
[1644975855835,14.5569,103.09,103.02,47.89540155]
[1644975856436,14.5569,103.09,103.02,48.14540155]
[1644975857240,14.5569,103.09,103.0,119.7077]
[1644975857440,21.1929,103.09,103.0,134.514]
[1644975858239,21.1929,103.09,103.01,37.88821539]
[1644975859043,14.5569,103.09,103.01,37.88821539]
[1644975859239,14.5569,103.09,103.01,38.13821539]
[1644975859841,14.5569,103.09,103.01,37.88821539]
[1644975861140,14.5569,103.09,103.01,134.88821539]
[1644975861645,14.5569,103.09,103.01,135.13821539]
[1644975862142,39.5297,103.1,103.01,151.55804781]
[1644975863943,39.5297,103.1,103.01,166.11304781]
[1644975865847,39.5297,103.1,103.01,69.11304781]
[1644975866247,39.5297,103.1,103.01,166.11304781]
[1644975866447,39.5297,103.1,103.01,163.67321539]
[1644975867049,39.5297,103.1,103.01,149.69321539]
[1644975867851,39.5297,103.1,103.01,52.69321539]
[1644975868254,39.5297,103.1,103.02,97.0]
[1644975868450,39.5297,103.1,103.03,39.36499667]
[1644975868650,39.5297,103.1,103.03,39.61499667]
[1644975874484,40.88561412,103.1,103.03,39.61499667]
[1644975875485,39.5297,103.1,103.03,39.61499667]
[1644975876087,40.88561412,103.1,103.03,39.61499667]
[1644975876291,40.88561412,103.1,103.03,0.25]
[1644975876488,40.88561412,103.1,103.0,24.07450737]
[1644975876690,1.35591412,103.08,102.98,24.86260737]
[1644975876890,14.5592,103.06,102.98,24.86260737]
[1644975877287,14.5592,103.06,102.99,36.01919488]
[1644975877888,14.5592,103.06,102.99,50.82809488]
[1644975878491,14.5592,103.06,102.99,36.26919488]
[1644975878688,14.5592,103.06,102.99,36.01919488]
[1644975879491,14.5592,103.06,102.99,36.26919488]
[1644975880392,37.6683,103.07,103.01,131.18159548]
[1644975880595,14.5566,103.07,103.01,131.43159548]
[1644975880897,1.35591412,103.09,103.01,131.43159548]
[1644975881099,1.35591412,103.09,103.01,133.8714279]
[1644975881504,1.35591412,103.1,103.01,133.8714279]
[1644975881697,25.44111412,103.1,103.01,133.8714279]
[1644975882298,14.5541,103.09,103.01,51.1772279]
[1644975882500,14.5541,103.09,103.01,48.73739548]
[1644975882701,15.91001412,103.09,103.01,34.18159548]
[1644975884301,15.91001412,103.09,103.01,34.43159548]
[1644975884501,15.91001412,103.09,103.01,34.18159548]
[1644975885300,1.35591412,103.08,103.01,34.18159548]
[1644975885504,14.5578,103.06,102.98,38.84260737]
[1644975885700,14.5578,103.06,102.98,23.4958]
[1644975885701,14.53436915,103.06,102.98,23.4958]
[1644975886501,14.53436915,103.06,102.99,34.30968112]
[1644975888706,14.53436915,103.06,102.99,34.55968112]
[1644975890406,14.53436915,103.06,102.98,38.056]
[1644975890608,25.60020157,103.06,102.96,26.23120737]
[1644975890807,24.4328,103.05,102.96,48.7536]
[1644975891109,14.5634,103.03,102.96,49.0036]
[1644975891310,23.4124,103.03,102.96,48.7536]
[1644975891505,23.4124,103.03,102.97,42.85641649]
[1644975891906,23.4124,103.03,102.95,15.93140737]
[1644975892109,23.4124,103.03,102.94,15.79522173]
[1644975892708,48.3273,103.03,102.94,16.04522173]
[1644975892908,39.4783,103.03,102.95,42.54424628]
[1644975893107,39.4783,103.03,102.95,42.79424628]
[1644975893308,39.4783,103.03,102.96,2.43983242]
[1644975893706,39.4783,103.03,102.96,2.68983242]
[1644975893910,24.9149,103.03,102.96,99.68983242]
[1644975894307,24.9149,103.03,102.96,114.25343242]
[1644975895107,24.9149,103.03,102.97,2.43983242]
[1644975895313,14.5608,103.04,102.98,14.5604]
[1644975895507,14.5608,103.04,102.99,42.72405068]
[1644975900517,14.5608,103.04,102.97,111.5628]
[1644975900721,14.5608,103.04,102.97,14.5628]
[1644975901417,14.5608,103.04,102.96,38.8042]
[1644975901616,14.5608,103.04,102.97,45.90944092]
[1644975902018,14.5608,103.04,102.94,11.95531125]
[1644975902218,24.4657,103.03,102.94,0.44841436]
[1644975902416,14.5685,103.01,102.94,0.44841436]
[1644975902619,24.7511,103.0,102.94,0.44841436]
[1644975903449,14.5699,102.99,102.94,0.44841436]
[1644975904051,17.00973242,102.99,102.94,0.44841436]
[1644975904245,17.00973242,102.99,102.93,0.13867744]
[1644975904246,2.43983242,102.99,102.93,0.13867744]
[1644975904449,14.5766,102.96,102.93,0.13867744]
[1644975904845,0.19386074,102.95,102.93,0.13867744]
[1644975906547,14.5716,102.98,102.93,0.13867744]
[1644975909249,17.01143242,102.98,102.93,0.13867744]
[1644975909653,14.5716,102.98,102.93,0.13867744]
[1644975910856,14.5716,102.98,102.93,0.10106086]
[1644975911656,17.01143242,102.98,102.93,0.10106086]
[1644975912972,14.5716,102.98,102.93,0.10106086]
[1644975916064,14.5716,102.98,102.93,0.17629402]
[1644975917168,24.7511,103.0,102.93,0.17629402]
[1644975917566,24.6527,103.02,102.94,97.0]
[1644975917766,24.6527,103.02,102.96,97.0]
[1644975918171,24.9849,103.03,102.96,97.25]
[1644975918370,24.9849,103.03,102.95,41.17808679]
[1644975918569,24.9849,103.03,102.95,138.17808679]
[1644975918768,24.9849,103.03,102.96,14.5626]
[1644975919167,39.5481,103.03,102.95,41.17808679]
[1644975919568,39.5481,103.03,102.93,14.15629402]
[1644975919569,41.98793242,103.03,102.93,0.17629402]
[1644975919768,23.964,103.02,102.93,0.17629402]
[1644975920169,26.40383242,103.02,102.93,0.17629402]
[1644975920371,23.5906,103.01,102.93,0.17629402]
[1644975920769,26.03043242,103.01,102.93,0.17629402]
[1644975920968,14.5706,103.0,102.93,0.17629402]
[1644975921575,17.01043242,103.0,102.93,0.17629402]
[1644975921968,14.5706,103.0,102.93,0.17629402]
[1644975927476,48.5685,103.01,102.94,45.0]
[1644975927674,2.43983242,103.04,102.94,142.0]
[1644975927873,19.63400791,103.05,102.96,97.0]
[1644975928078,1.35591412,103.07,102.98,97.0]
[1644975928276,1.35591412,103.07,102.98,110.98]
[1644975928473,6.42619414,103.08,102.98,125.79]
[1644975928675,1.35591412,103.09,102.99,2.43983242]
[1644975928874,1.35591412,103.1,103.0,110.98]
[1644975929085,1.35591412,103.1,103.02,97.0]
[1644975929277,1.35591412,103.1,103.01,54.26220577]
[1644975929278,14.5534,103.1,103.01,54.26220577]
[1644975929476,14.5534,103.1,103.01,40.53220577]
[1644975929677,14.5534,103.1,103.02,14.5529]
[1644975929678,15.90931412,103.1,103.02,14.5529]
[1644975929882,15.90931412,103.1,103.01,37.84237335]
[1644975930080,1.35591412,103.08,103.01,37.84237335]
[1644975930880,10.14391412,103.08,102.97,13.98]
[1644975931177,14.5598,103.06,102.97,28.5416]
[1644975931377,22.5754,103.05,102.97,125.7916]
[1644975931579,23.7205,103.07,102.98,2.43983242]
[1644975931778,1.35591412,103.09,103.0,97.0]
[1644975931979,1.35591412,103.09,103.01,139.43638581]
[1644975932178,14.5548,103.09,103.02,14.5548]
[1644975932583,14.5548,103.09,103.02,14.8048]
[1644975932780,14.5548,103.09,103.02,14.5548]
[1644975933480,14.5548,103.09,103.01,56.99338581]
[1644975934084,14.5548,103.09,103.02,2.43983242]
[1644975934287,15.90921412,103.1,103.02,2.43983242]
[1644975934582,75.5386,103.16,103.05,97.0]
[1644975934583,1.35591412,103.13,103.05,97.0]
[1644975934785,49.43571412,103.14,103.06,34.40590644]
[1644975935188,14.5492,103.13,103.03,19.98]
[1644975935383,15.90511412,103.13,103.03,14.23]
[1644975935583,15.90511412,103.13,103.04,14.5518]
[1644975935784,1.35591412,103.12,103.04,14.5518]
[1644975936084,1.35591412,103.13,103.04,14.5518]
[1644975936285,14.552,103.12,103.05,37.03481233]
[1644975937509,14.552,103.12,103.08,1.9228713]
[1644975937714,14.552,103.12,103.09,41.43493388]
[1644975937911,0.19386074,103.11,103.09,41.43493388]
[1644975938612,0.19386074,103.11,103.1,2.55237537]
[1644975939615,0.19386074,103.11,103.08,1.9228713]
[1644975939815,5.84886074,103.11,103.01,16.41983242]
[1644975940115,8.28869316,103.11,103.0,28.5371]
[1644975940318,23.62460728,103.11,103.0,14.5571]
[1644975940518,23.96,103.1,103.01,37.6198017]
[1644975940717,14.5585,103.08,103.01,37.6198017]
[1644975940917,48.1426,103.1,103.01,52.1763017]
[1644975941124,48.1426,103.1,103.01,149.4263017]
[1644975941317,48.1426,103.1,103.02,2.43983242]
[1644975941714,48.1426,103.1,103.02,2.68983242]
[1644975941915,62.6973,103.1,103.02,2.68983242]
[1644975942114,62.6973,103.1,103.03,2.43983242]
[1644975942515,62.6973,103.1,103.03,2.68983242]
[1644975942921,24.732,103.13,103.03,17.24313242]
[1644975943517,24.732,103.13,103.04,2.43983242]
[1644975943717,14.5522,103.11,103.05,39.40500259]
[1644975943919,14.5522,103.11,103.02,41.74843242]
[1644975944118,22.6352,103.11,103.02,41.74843242]
[1644975944320,22.6352,103.11,103.02,39.3086]
[1644975944717,22.6352,103.11,103.02,14.5541]
[1644975944920,22.6352,103.11,103.03,39.95251556]
[1644975945121,14.5522,103.11,103.03,39.95251556]
[1644975945526,14.5522,103.11,103.03,151.50611556]
[1644975945722,14.5522,103.11,103.03,153.94594798]
[1644975945923,14.5522,103.11,103.03,56.94594798]
[1644975946220,14.5522,103.11,103.03,54.50611556]
[1644975946623,14.5522,103.11,103.03,39.95251556]
[1644975946822,14.5522,103.11,102.99,16.41983242]
[1644975947020,14.5522,103.11,102.99,2.43983242]
[1644975947021,23.4473,103.1,102.99,2.43983242]
[1644975947221,14.559,103.07,102.99,2.43983242]
[1644975947823,14.559,103.07,103.0,43.32017182]
[1644975948922,14.559,103.07,103.0,57.87827182]
[1644975949122,14.559,103.07,103.01,2.43983242]
[1644975949325,23.4473,103.08,103.01,2.43983242]
[1644975949526,22.8167,103.11,103.01,2.68983242]
[1644975949724,45.7186,103.11,103.01,2.68983242]
[1644975949925,45.7186,103.11,103.02,2.43983242]
[1644975950124,45.7186,103.11,103.03,14.5527]
[1644975950329,45.7186,103.11,103.04,40.18720476]
[1644975950534,60.2719,103.11,103.04,42.62703718]
[1644975950927,60.2719,103.11,103.04,42.87703718]
[1644975951133,60.2719,103.11,103.04,42.62703718]
[1644975951527,60.2719,103.11,103.04,42.87703718]
[1644975951927,60.2719,103.11,103.04,57.42973718]
[1644975952526,60.2719,103.11,103.04,57.17973718]
[1644975952726,45.7186,103.11,103.04,154.42973718]
[1644975953129,45.7186,103.11,103.04,57.42973718]
[1644975953730,14.5504,103.12,103.05,97.0]
[1644975954130,14.5504,103.12,103.06,14.5496]
[1644975955328,14.5504,103.12,103.04,65.98233718]
[1644975955531,14.5504,103.12,103.04,63.54250476]
[1644975955738,14.5504,103.12,103.04,23.3553]
[1644975955739,15.90631412,103.12,103.04,23.3553]
[1644975955930,29.88631412,103.12,102.99,38.6183]
[1644975956132,1.35591412,103.1,103.0,22.6928]
[1644975956333,14.557,103.08,103.0,22.6928]
[1644975956534,1.35591412,103.1,103.01,113.99653242]
[1644975956734,1.35591412,103.1,103.02,133.53441009]
[1644975956933,1.35591412,103.1,103.02,135.97424251]
[1644975957135,1.35591412,103.1,103.02,136.22424251]
[1644975958034,15.91021412,103.1,103.03,14.5536]
[1644975958635,14.5543,103.1,103.03,17.24343242]
[1644975959038,62.74611412,103.11,103.03,114.24343242]
[1644975959338,48.19441412,103.11,103.03,114.24343242]
[1644975960136,48.19441412,103.11,103.03,113.99343242]
[1644975960341,48.19441412,103.11,103.03,17.24343242]
[1644975960539,48.19441412,103.11,103.03,16.99343242]
[1644975960740,1.35591412,103.11,103.04,97.0]
[1644975960940,1.35591412,103.11,103.05,14.5506]
[1644975961140,1.35591412,103.11,103.06,37.92032019]
[1644975961341,15.90731412,103.11,103.06,37.92032019]
[1644975961552,15.90731412,103.11,103.03,27.38643242]
[1644975961739,1.35591412,103.1,103.03,24.9466]
[1644975961941,1.35591412,103.1,103.01,2.43983242]
[1644975962142,1.35591412,103.09,103.0,23.2125]
[1644975962772,15.91091412,103.09,103.01,45.40749735]
[1644975963943,1.35591412,103.08,103.01,45.40749735]
[1644975964142,14.5579,103.07,103.01,45.40749735]
[1644975964343,14.5579,103.07,103.01,45.65749735]
[1644975965046,1.35591412,103.09,103.01,159.65412977]
[1644975965244,15.91031412,103.09,103.01,159.65412977]
[1644975966244,15.91031412,103.09,103.02,6.0]
[1644975966446,15.91031412,103.09,103.02,117.5547]
[1644975966645,64.16481412,103.1,103.03,2.43983242]
[1644975966845,49.61211412,103.1,103.03,2.43983242]
[1644975967047,49.61211412,103.1,103.03,2.68983242]
[1644975967246,49.61211412,103.1,103.03,2.43983242]
[1644975967446,49.61211412,103.1,103.04,2.43983242]
[1644975967646,49.61211412,103.1,103.05,35.45306551]
[1644975968046,64.16471412,103.1,103.05,35.45306551]
[1644975968250,64.16471412,103.1,103.02,2.43983242]
[1644975968450,72.31071412,103.1,102.99,25.92260737]
[1644975968647,1.35591412,103.08,103.0,0.25]
[1644975968847,1.35591412,103.08,102.99,26.99563242]
[1644975969059,1.35591412,103.07,102.99,26.99563242]
[1644975969249,1.35591412,103.07,103.0,40.20761024]
[1644975969550,14.5568,103.07,103.0,54.76581024]
[1644975969948,1.35591412,103.09,103.0,154.45564266]
[1644975970549,1.35591412,103.09,103.0,184.77208006]
[1644975971953,15.91001412,103.09,103.0,184.77208006]
[1644975975053,1.35591412,103.09,103.0,184.77208006]
[1644975976156,15.90991412,103.09,103.0,184.77208006]
[1644975977057,1.35591412,103.09,103.0,184.77208006]
[1644975977255,49.61211412,103.1,103.02,97.0]
[1644975977458,1.35591412,103.1,103.04,14.5512]
[1644975977657,15.90711412,103.11,103.05,37.91101854]
[1644975978077,15.90711412,103.11,103.05,38.16101854]
[1644975978286,15.90711412,103.11,103.05,37.91101854]
[1644975978879,15.90831412,103.1,103.05,37.91101854]
[1644975979281,14.5524,103.1,103.05,37.91101854]
[1644975979678,14.5524,103.1,103.05,38.16101854]
[1644975981788,14.5524,103.1,103.05,37.91101854]
[1644975982287,15.90831412,103.1,103.03,38.0271]
[1644975982487,22.20731412,103.1,103.03,23.4728]
[1644975982686,1.35591412,103.09,103.03,23.4728]
[1644975982887,14.5558,103.08,103.03,23.4728]
[1644975983288,14.5558,103.08,103.03,71.13060345]
[1644975983788,14.5558,103.08,103.03,47.65780345]
[1644975984890,15.90951412,103.09,103.03,62.21230345]
[1644975985089,15.90951412,103.09,103.03,62.46230345]
[1644975985290,15.90951412,103.09,103.03,62.21230345]
[1644975985490,25.42611412,103.1,103.03,62.46230345]
[1644975985691,24.0702,103.1,103.03,64.90213587]
[1644975986593,24.0702,103.1,103.03,161.90213587]
[1644975987396,25.42611412,103.1,103.03,161.90213587]
[1644975987596,24.0702,103.1,103.03,161.90213587]
[1644975989501,1.35591412,103.11,103.03,175.88213587]
[1644975989702,1.35591412,103.11,103.04,6.0]
[1644975989905,1.35591412,103.13,103.05,97.0]
[1644975990200,1.35591412,103.13,103.08,44.96458145]
[1644975991803,1.35591412,103.13,103.08,59.51128145]
[1644975994806,15.90421412,103.13,103.08,14.5467]
[1644975995007,15.90421412,103.13,103.05,23.3565]
[1644975995203,24.65571412,103.12,103.05,23.3565]
[1644975995405,24.65571412,103.12,103.05,23.6065]
[1644975995805,14.551,103.11,103.06,43.53763599]
[1644975996004,15.90691412,103.11,103.05,23.3565]
[1644975996204,14.551,103.11,103.03,22.6421]
[1644975996403,15.90691412,103.11,103.03,22.8921]
[1644975996630,15.90691412,103.11,103.03,22.6421]
[1644975996832,15.90691412,103.11,103.03,25.08193242]
[1644975997026,15.90691412,103.11,103.04,48.11889115]
[1644975997235,15.90691412,103.11,103.05,97.0]
[1644975997437,15.90581412,103.12,103.04,50.55872357]
[1644975998529,15.90391412,103.13,103.05,16.99133242]
[1644975998928,1.35591412,103.13,103.06,113.41983242]
[1644975999130,24.04581412,103.14,103.06,113.66983242]
[1644975999326,24.04581412,103.14,103.08,36.62002578]
[1644975999929,38.59251412,103.14,103.08,51.16672578]
[1644976000828,1.35591412,103.14,103.08,164.5865582]
[1644976001030,1.35591412,103.15,103.08,164.8365582]
[1644976001232,1.35591412,103.16,103.08,181.1729956]
[1644976001428,1.35591412,103.17,103.08,205.7366956]
[1644976001830,1.35591412,103.17,103.08,181.1729956]
[1644976002053,1.35591412,103.18,103.13,97.0]
[1644976002230,1.35591412,103.19,103.14,136.06066166]
[1644976002433,1.35591412,103.19,103.14,39.06066166]
[1644976003031,1.35591412,103.2,103.14,39.06066166]
[1644976003429,1.35591412,103.2,103.12,110.98]
[1644976003829,1.35591412,103.2,103.12,13.98]
[1644976004029,1.35591412,103.2,103.1,145.2227]
[1644976004233,1.35591412,103.19,103.1,159.2027]
[1644976004431,15.89791412,103.18,103.11,60.99593221]
[1644976005233,14.542,103.18,103.11,74.97593221]
[1644976006231,15.89791412,103.18,103.11,74.97593221]
[1644976006431,1.35591412,103.17,103.11,60.43363221]
[1644976006832,14.545,103.16,103.11,60.43363221]
[1644976009035,14.545,103.16,103.11,46.45363221]
[1644976009936,15.89911412,103.18,103.11,46.45363221]
[1644976010243,1.35591412,103.18,103.11,172.22583221]
[1644976010438,25.19331412,103.19,103.11,172.22583221]
[1644976010836,25.19331412,103.19,103.11,77.41566463]
[1644976011038,39.73411412,103.19,103.11,14.5422]
[1644976011238,1.35591412,103.18,103.09,16.41983242]
[1644976011436,1.35591412,103.17,103.08,110.98]
[1644976011638,1.35591412,103.18,103.09,2.43983242]
[1644976011837,1.35591412,103.18,103.09,113.41983242]
[1644976012037,1.35591412,103.18,103.1,43.45900985]
[1644976012238,14.5435,103.17,103.11,14.5424]
[1644976012648,1.35591412,103.18,103.11,14.5424]
[1644976013540,15.89801412,103.18,103.11,14.5424]
[1644976013742,14.5421,103.18,103.11,28.5224]
[1644976013944,15.89801412,103.18,103.11,28.5224]
[1644976015041,14.5421,103.18,103.11,28.5224]
[1644976015645,14.5421,103.18,103.11,13.98]
[1644976015843,15.89801412,103.18,103.1,43.45900985]
[1644976016042,1.35591412,103.17,103.1,43.45900985]
[1644976016443,14.5455,103.16,103.1,43.45900985]
[1644976019853,15.90141412,103.16,103.1,43.45900985]
[1644976020348,15.90141412,103.16,103.08,14.5466]
[1644976021246,15.90141412,103.16,103.09,40.53075025]
[1644976021448,15.90141412,103.16,103.09,55.07615025]
[1644976021846,14.5455,103.16,103.09,55.07615025]
[1644976022050,15.90141412,103.16,103.09,55.07615025]
[1644976024456,15.90141412,103.16,103.09,152.07615025]
[1644976024651,15.90141412,103.16,103.09,154.76598267]
[1644976025052,64.03891412,103.17,103.09,154.76598267]
[1644976026055,64.03891412,103.17,103.09,154.51598267]
[1644976026254,1.35591412,103.16,103.09,154.51598267]
[1644976027553,15.90021412,103.16,103.09,154.51598267]
[1644976029155,1.35591412,103.15,103.09,154.51598267]
[1644976029960,15.90021412,103.16,103.09,154.51598267]
[1644976032162,1.35591412,103.15,103.09,154.51598267]
[1644976032360,1.35591412,103.15,103.11,97.0]
[1644976032562,1.35591412,103.16,103.12,14.5398]
[1644976032761,1.35591412,103.17,103.13,42.60981143]
[1644976033162,1.35591412,103.18,103.13,42.60981143]
[1644976033763,1.35591412,103.17,103.13,42.60981143]
[1644976034363,1.35591412,103.17,103.1,40.85833242]
[1644976034562,15.89881412,103.17,103.1,41.42303242]
[1644976034765,1.35591412,103.16,103.1,14.5447]
[1644976034964,1.35591412,103.15,103.1,14.5447]
[1644976035366,1.35591412,103.15,103.1,53.15677291]
[1644976035965,15.90121412,103.15,103.1,53.15677291]
[1644976036264,1.35591412,103.15,103.1,152.59660533]
[1644976036471,1.35591412,103.16,103.1,152.59660533]
[1644976036663,1.35591412,103.15,103.1,152.59660533]
[1644976037265,1.35591412,103.16,103.1,152.59660533]
[1644976037668,1.35591412,103.16,103.1,14.5447]
[1644976037876,1.35591412,103.15,103.09,14.5458]
[1644976038071,1.35591412,103.14,103.09,14.5458]
[1644976038272,1.35591412,103.14,103.09,16.98563242]
[1644976038471,1.35591412,103.15,103.09,16.98563242]
[1644976038667,25.50851412,103.16,103.1,44.19458808]
[1644976038868,1.35591412,103.16,103.11,14.5428]
[1644976039267,1.35591412,103.17,103.11,111.5428]
[1644976039468,1.35591412,103.17,103.11,114.23263242]
[1644976040272,1.35591412,103.18,103.11,114.23263242]
[1644976042074,1.35591412,103.18,103.11,113.98263242]
[1644976042276,1.35591412,103.17,103.11,16.98263242]
[1644976043175,15.89851412,103.17,103.11,16.98263242]
[1644976043574,1.35591412,103.16,103.11,14.5428]
[1644976043776,1.35591412,103.16,103.1,82.00818808]
[1644976043977,1.35591412,103.16,103.08,13.98]
[1644976044178,1.35591412,103.16,103.07,16.41983242]
[1644976044376,1.35591412,103.15,103.07,16.41983242]
[1644976044581,14.5477,103.14,103.07,16.41983242]
[1644976044979,1.35591412,103.15,103.08,157.87380727]
[1644976045293,23.6067,103.16,103.08,157.87380727]
[1644976045294,24.96261412,103.16,103.09,13.98]
[1644976045493,24.96261412,103.16,103.09,16.41983242]
[1644976045897,24.96261412,103.16,103.09,2.43983242]
[1644976046799,15.89991412,103.16,103.1,14.5435]
[1644976046997,15.89991412,103.16,103.1,111.5435]
[1644976046998,1.35591412,103.16,103.1,111.5435]
[1644976047198,1.35591412,103.17,103.1,113.98333242]
[1644976047596,1.35591412,103.17,103.1,114.23333242]
[1644976047996,1.35591412,103.17,103.1,113.98333242]
[1644976048396,15.89891412,103.17,103.1,113.98333242]
[1644976048799,1.35591412,103.16,103.1,111.5435]
[1644976049798,14.5453,103.15,103.1,111.5435]
[1644976049997,15.90121412,103.15,103.1,111.5435]
[1644976050297,15.90121412,103.15,103.09,14.546]
[1644976050500,14.5453,103.15,103.09,14.546]
[1644976050703,15.90121412,103.15,103.09,14.546]
[1644976050898,15.90121412,103.15,103.08,70.36730727]
[1644976051906,15.90121412,103.15,103.08,84.91460727]
[1644976052102,15.90121412,103.15,103.08,182.16460727]
[1644976052401,15.89981412,103.16,103.08,182.16460727]
[1644976052601,15.89981412,103.16,103.09,110.98]
[1644976053103,15.89981412,103.16,103.09,113.66983242]
[1644976054003,15.89981412,103.16,103.12,43.92226093]
[1644976054606,15.89981412,103.16,103.09,113.41983242]
[1644976055608,15.89981412,103.16,103.09,113.66983242]
[1644976055908,15.89981412,103.16,103.1,14.5443]
[1644976056109,1.35591412,103.15,103.1,14.5443]
[1644976056310,15.90141412,103.15,103.1,14.5443]
[1644976056911,15.90141412,103.15,103.1,56.14167093]
[1644976059815,15.90141412,103.15,103.09,14.5458]
[1644976060818,15.90141412,103.15,103.1,42.13314267]
[1644976061115,15.90141412,103.15,103.07,26.54916943]
[1644976061316,15.90141412,103.15,103.07,2.43983242]
[1644976061517,15.90141412,103.15,103.07,12.57112122]
[1644976061719,14.549,103.12,103.07,12.57112122]
[1644976061922,14.549,103.12,103.06,121.1821]
[1644976062115,14.549,103.12,103.08,42.59892065]
[1644976062516,49.85241412,103.15,103.08,42.59892065]
[1644976062717,14.5465,103.14,103.08,42.59892065]
[1644976063720,14.5465,103.14,103.08,57.14622065]
[1644976064918,15.90241412,103.14,103.08,57.14622065]
[1644976065122,14.5465,103.14,103.08,57.14622065]
[1644976071035,14.5465,103.14,103.08,42.59892065]
[1644976071236,15.90241412,103.14,103.08,42.59892065]
[1644976071655,1.35591412,103.13,103.08,42.59892065]
[1644976071857,14.5475,103.13,103.08,42.59892065]
[1644976072862,14.5475,103.13,103.08,57.14642065]
[1644976074662,14.5475,103.13,103.08,42.59892065]
[1644976075663,39.64461412,103.14,103.08,42.59892065]
[1644976075860,38.2887,103.14,103.08,154.14582065]
[1644976076062,1.35591412,103.15,103.08,156.58565307]
[1644976077166,26.27841412,103.16,103.1,97.0]
[1644976077566,26.27841412,103.16,103.11,14.5421]
[1644976077768,26.27841412,103.16,103.12,40.12012251]
[1644976078163,24.9225,103.16,103.12,40.12012251]
[1644976078763,26.27841412,103.16,103.12,40.12012251]
[1644976078965,1.35591412,103.15,103.09,38.0393]
[1644976079377,14.5464,103.14,103.09,24.0593]
[1644976079569,1.35591412,103.15,103.09,111.7963]
[1644976079764,26.27841412,103.16,103.09,111.5463]
[1644976079966,26.27841412,103.16,103.1,40.68561623]
[1644976080869,40.82191412,103.16,103.08,23.4513]
[1644976081067,1.35591412,103.15,103.08,23.4513]
[1644976081268,1.35591412,103.15,103.07,97.0]
[1644976081469,1.35591412,103.14,103.07,97.0]
[1644976081866,1.35591412,103.14,103.08,45.87729967]
[1644976082567,14.5477,103.13,103.08,45.87729967]